fUST/lending_fUST_20240501
["ID","MTS","AMOUNT","RATE_DAILY","PERIOD"]
[325196188,1714572672683,-500.0,0.00056438,120]
[325196189,1714572672692,-2544.3,0.00056438,120]
[325196190,1714572672702,-1492.06,0.00056438,120]
[325196191,1714572672711,-500.0,0.00056438,120]
[325196192,1714572672720,-500.0,0.00056438,120]
[325196193,1714572672729,-500.0,0.00056438,120]
[325196194,1714572672738,-376.85810648,0.00056438,120]
[325196195,1714572672747,-11017.25,0.00056438,120]
[325196196,1714572672756,-500.0,0.00056438,120]
[325196197,1714572672765,-500.0,0.00056438,120]
[325196198,1714572672774,-500.0,0.00056438,120]
[325196199,1714572672783,-1610.35,0.00056438,120]
[325196200,1714572672793,-500.0,0.00056438,120]
[325196201,1714572672802,-500.0,0.00056438,120]
[325196202,1714572672811,-1825.83,0.00056438,120]
[325196203,1714572672820,-500.0,0.00056438,120]
[325196204,1714572672829,-823.85,0.00056438,120]
[325196205,1714572672839,-500.0,0.00056438,120]
[325196206,1714572672848,-500.0,0.00056438,120]
[325196207,1714572672856,-500.0,0.00056438,120]
[325196208,1714572672866,-1779.68,0.00056438,120]
[325196209,1714572672875,-500.0,0.00056438,120]
[325196210,1714572672884,-193.66475377,0.00056438,120]
[325196211,1714572672896,-500.82733921,0.00056438,120]
[325196212,1714572672905,-559.38,0.00056438,120]
[325196213,1714572672914,-500.0,0.00056438,120]
[325196214,1714572672923,-500.0,0.00056438,120]
[325196215,1714572672933,-500.0,0.00056438,120]
[325196216,1714572672942,-500.0,0.00056438,120]
[325196217,1714572672952,-544.46313943,0.00056438,120]
[325196218,1714572672961,-692.14,0.00056438,120]
[325196219,1714572672970,-500.0,0.00056438,120]
[325196220,1714572672980,-1846.2,0.00056438,120]
[325196221,1714572672989,-1149.21,0.00056438,21]
[325196222,1714572672999,-500.0,0.00056438,120]
[325196223,1714572673009,-548.41,0.00056438,120]
[325196224,1714572673018,-500.0,0.00056438,120]
[325196225,1714572673027,-500.0,0.00056438,120]
[325196226,1714572673037,-511.21,0.00056438,120]
[325196227,1714572673046,-500.0,0.00056438,120]
[325196228,1714572673056,-2131.16,0.00056438,120]
[325196229,1714572673065,-500.0,0.00056438,120]
[325196230,1714572673075,-1147.1,0.00056438,120]
[325196231,1714572673084,-1609.49,0.00056438,120]
[325196232,1714572673093,-6055.3,0.00056438,120]
[325196233,1714572673103,-500.0,0.00056438,120]
[325196234,1714572673112,-500.0,0.00056438,120]
[325196235,1714572673121,-221.12538202,0.00056438,120]
[325196236,1714572673130,-500.0,0.00056438,120]
[325196237,1714572673144,-1668.77,0.00056438,120]
[325196238,1714572673153,-592.33,0.00056438,120]
[325196239,1714572673164,-500.0,0.00056438,120]
[325196240,1714572673175,-1156.16,0.00056438,120]
[325196241,1714572673184,-2002.71,0.00056438,120]
[325196242,1714572673194,-500.0,0.00056438,120]
[325196243,1714572673203,-500.0,0.00056438,120]
[325196244,1714572673213,-777.36,0.00056438,120]
[325196245,1714572673222,-500.0,0.00056438,120]
[325196246,1714572673231,-1214.19,0.00056438,120]
[325196247,1714572673241,-500.0,0.00056438,120]
[325196248,1714572673250,-603.09,0.00056438,120]
[325196249,1714572673259,-501.26063707,0.00056438,120]
[325196250,1714572673268,-609.08,0.00056438,120]
[325196251,1714572673276,-500.0,0.00056438,120]
[325196252,1714572673286,-500.0,0.00056438,120]
[325196253,1714572673295,-500.0,0.00056438,120]
[325196254,1714572673304,-500.0,0.00056438,120]
[325196255,1714572673313,-502.79173737,0.00056438,120]
[325196256,1714572673322,-1476.3,0.00056438,120]
[325196257,1714572673331,-500.0,0.00056438,120]
[325196258,1714572673339,-802.35,0.00056438,120]
[325196259,1714572673348,-5816.73,0.00056438,30]
[325196260,1714572673358,-386.49566674,0.00056438,120]
[325196261,1714572673367,-554.12,0.00056438,120]
[325196262,1714572673376,-410.03210294,0.00056438,120]
[325196263,1714572673386,-500.0,0.00056438,120]
[325196264,1714572673398,-500.0,0.00056438,120]
[325196265,1714572673407,-500.0,0.00056438,120]
[325196266,1714572673416,-500.0,0.00056438,120]
[325196267,1714572673426,-863.59,0.00056438,120]
[325196268,1714572673435,-791.02,0.00056438,120]
[325196269,1714572673445,-6727.11,0.00056438,120]
[325196270,1714572673454,-500.0,0.00056438,120]
[325196271,1714572673464,-500.0,0.00056438,120]
[325196272,1714572673472,-748.69,0.00056438,120]
[325196273,1714572673482,-500.0,0.00056438,120]
[325196274,1714572673491,-500.0,0.00056438,120]
[325196275,1714572673501,-3192.87,0.00056438,120]
[325196276,1714572673510,-498.43755309,0.00056438,120]
[325196277,1714572673519,-1062.83,0.00056438,120]
[325196278,1714572673529,-23207.15,0.00056438,120]
[325196279,1714572673540,-772.53,0.00056438,120]
[325196280,1714572673549,-500.0,0.00056438,120]
[325196281,1714572673558,-8045.56,0.00056438,120]
[325196282,1714572673569,-196.64433549,0.00056438,120]
[325196283,1714572673579,-1945.48,0.00056438,120]
[325196284,1714572673689,-500.0,0.00056438,120]
[325196285,1714572673700,-500.0,0.00056438,120]
[325196286,1714572673709,-1954.15,0.00056438,120]
[325196287,1714572673719,-1471.13,0.00056438,120]
[325196288,1714572673728,-500.0,0.00056438,120]
[325196289,1714572673738,-881.83,0.00056438,120]
[325196290,1714572673747,-385.46983335,0.00056438,120]
[325196291,1714572673756,-775.47,0.00056438,120]
[325196292,1714572673766,-1101.12,0.00056438,120]
[325196293,1714572673775,-2965.72,0.00056438,120]
[325196294,1714572673784,-719.83,0.00056438,120]
[325196295,1714572673793,-1429.92,0.00056438,120]
[325196296,1714572673802,-500.0,0.00056438,120]
[325196297,1714572673811,-500.0,0.00056438,120]
[325196298,1714572673821,-601.05,0.00056438,120]
[325196299,1714572673830,-760.17,0.00056438,120]
[325196300,1714572673839,-500.0,0.00056438,120]
[325196301,1714572673849,-454.16844418,0.00056438,120]
[325196302,1714572673858,-500.0,0.00056438,120]
[325196303,1714572673868,-500.0,0.00056438,120]
[325196304,1714572673877,-928.81,0.00056438,120]
[325196305,1714572673891,-500.0,0.00056438,120]
[325196306,1714572673900,-911.4,0.00056438,120]
[325196307,1714572673910,-514.42,0.00056438,120]
[325196308,1714572673919,-500.0,0.00056438,120]
[325196309,1714572673929,-500.0,0.00056438,120]
[325196310,1714572673938,-500.0,0.00056438,120]
[325196311,1714572673948,-500.0,0.00056438,120]
[325196312,1714572673957,-595.81,0.00056438,120]
[325196313,1714572673967,-500.0,0.00056438,120]
[325196314,1714572673976,-546.33,0.00056438,120]
[325196315,1714572673986,-1330.07,0.00056438,120]
[325196316,1714572673996,-500.0,0.00056438,120]
[325196317,1714572674005,-500.0,0.00056438,120]
[325196318,1714572674015,-500.0,0.00056438,120]
[325196319,1714572674024,-500.0,0.00056438,120]
[325196320,1714572674033,-734.7,0.00056438,120]
[325196321,1714572674043,-500.0,0.00056438,120]
[325196322,1714572674052,-517.3,0.00056438,120]
[325196323,1714572674062,-500.0,0.00056438,120]
[325196324,1714572674071,-500.0,0.00056438,120]
[325196325,1714572674081,-626.18,0.00056438,120]
[325196326,1714572674090,-894.54,0.00056438,120]
[325196327,1714572674099,-500.0,0.00056438,120]
[325196328,1714572674109,-4028.05,0.00056438,120]
[325196329,1714572674118,-500.0,0.00056438,120]
[325196330,1714572674128,-500.0,0.00056438,120]
[325196331,1714572674137,-2976.84,0.00056438,120]
[325196332,1714572674150,-500.0,0.00056438,120]
[325196333,1714572674159,-500.0,0.00056438,120]
[325196334,1714572674169,-500.0,0.00056438,120]
[325196335,1714572674181,-500.0,0.00056438,120]
[325196336,1714572674190,-1523.39,0.00056438,120]
[325196337,1714572674199,-502.1300506,0.00056438,120]
[325196338,1714572674208,-604.07512,0.00056559,2]
[325196339,1714572674219,-151.0,0.00056658,120]
[325196340,1714572674228,-500.0,0.00056986,120]
[325196341,1714572674237,-352.30458473,0.00056986,120]
[325196342,1714572674246,-500.0,0.00056986,120]
[325196343,1714572674256,-500.0,0.00056986,120]
[325196344,1714572674266,-500.0,0.00056986,120]
[325196345,1714572674275,-500.0,0.00056986,120]
[325196346,1714572674284,-675.55,0.00056986,120]
[325196347,1714572674294,-500.0,0.00056986,120]
[325196348,1714572674303,-330.96884168,0.00056986,120]
[325196349,1714572674312,-448.50081179,0.00056986,120]
[325196350,1714572674321,-500.0,0.00056986,120]
[325196351,1714572674330,-500.0,0.00056986,120]
[325196352,1714572674340,-500.0,0.00056986,120]
[325196353,1714572674349,-627.3,0.00056986,120]
[325196354,1714572674358,-500.0,0.00056986,120]
[325196355,1714572674367,-500.0,0.00056986,120]
[325196356,1714572674376,-500.0,0.00056986,120]
[325196357,1714572674387,-500.0,0.00056986,120]
[325196358,1714572674400,-500.0,0.00056986,60]
[325196359,1714572674410,-500.0,0.00056986,120]
[325196360,1714572674419,-500.0,0.00056986,120]
[325196361,1714572674428,-981.62,0.00056986,120]
[325196362,1714572674437,-500.0,0.00056986,120]
[325196363,1714572674447,-1156.78,0.00056986,120]
[325196364,1714572674456,-615.44,0.00056986,120]
[325196365,1714572674466,-605.91,0.00056986,120]
[325196366,1714572674475,-500.0,0.00056986,120]
[325196367,1714572674484,-500.0,0.00056986,120]
[325196368,1714572674494,-500.0,0.00056986,120]
[325196369,1714572674503,-500.0,0.00056986,120]
[325196370,1714572674513,-500.0,0.00056986,120]
[325196371,1714572674522,-500.0,0.00056986,120]
[325196372,1714572674533,-1193.27,0.00056986,120]
[325196373,1714572674542,-500.0,0.00056986,120]
[325196374,1714572674551,-500.0,0.00056986,120]
[325196375,1714572674561,-500.0,0.00056986,120]
[325196376,1714572674570,-501.01164287,0.00056986,120]
[325196377,1714572674580,-500.0,0.00056986,120]
[325196378,1714572674589,-500.0,0.00056986,120]
[325196379,1714572674599,-500.0,0.00056986,120]
[325196380,1714572674608,-500.0,0.00056986,120]
[325196381,1714572674617,-500.0,0.00056986,120]
[325196382,1714572674626,-500.0,0.00056986,120]
[325196383,1714572674636,-500.0,0.00056986,120]
[325196384,1714572674650,-535.92,0.00056986,120]
[325196385,1714572674659,-500.0,0.00056986,120]
[325196386,1714572674668,-500.0,0.00056986,120]
[325196387,1714572674677,-500.0,0.00056986,120]
[325196388,1714572674687,-500.0,0.00056986,120]
[325196389,1714572674696,-500.0,0.00056986,120]
[325196390,1714572674706,-623.71,0.00056986,120]
[325196391,1714572674716,-500.0,0.00056986,120]
[325196392,1714572674725,-500.0,0.00056986,120]
[325196393,1714572674734,-500.0,0.00056986,120]
[325196394,1714572674744,-500.0,0.00056986,120]
[325196395,1714572674754,-500.0,0.00056986,120]
[325196396,1714572674763,-500.0,0.00056986,120]
[325196397,1714572674772,-815.15,0.00056986,120]
[325196398,1714572674781,-500.0,0.00056986,120]
[325196399,1714572674791,-500.0,0.00056986,30]
[325196400,1714572674800,-587.94,0.00056986,120]
[325196401,1714572674810,-606.45664126,0.00056986,2]
[325196402,1714572674819,-500.0,0.00056986,120]
[325196403,1714572674829,-500.0,0.00056986,120]
[325196404,1714572674838,-1302.55,0.00056986,120]
[325196405,1714572674847,-500.0,0.00056986,120]
[325196406,1714572674856,-223.82861418,0.00056986,120]
[325196407,1714572674866,-500.0,0.00056986,120]
[325196408,1714572674875,-500.0,0.00056986,120]
[325196409,1714572674885,-524.03,0.00056986,120]
[325196410,1714572674899,-500.0,0.00056986,120]
[325196411,1714572674908,-501.11798054,0.00056986,120]
[325196412,1714572674917,-482.42953345,0.00056986,120]
[325196413,1714572674926,-549.97,0.00056986,120]
[325196414,1714572674935,-1645.04,0.00056986,120]
[325196415,1714572674944,-501.09806989,0.00056986,120]
[325196416,1714572674954,-500.0,0.00056986,120]
[325196417,1714572674963,-500.0,0.00056986,120]
[325196418,1714572674972,-500.89811379,0.00056986,120]
[325196419,1714572674982,-500.0,0.00056986,120]
[325196420,1714572674992,-965.17,0.00056986,120]
[325196421,1714572675001,-1276.34,0.00056986,120]
[325196422,1714572675012,-500.7833895,0.00056986,120]
[325196423,1714572675021,-500.0,0.00056986,120]
[325196424,1714572675031,-548.5,0.00056986,120]
[325196425,1714572675041,-2762.03,0.00056986,120]
[325196426,1714572675050,-500.0,0.00056986,120]
[325196427,1714572675059,-700.99,0.00056986,120]
[325196428,1714572675069,-500.0,0.00056986,120]
[325196429,1714572675078,-1059.71,0.00056986,120]
[325196430,1714572675088,-911.27,0.00056986,120]
[325196431,1714572675097,-500.0,0.00056986,120]
[325196432,1714572675107,-1000.0,0.00056986,120]
[325196433,1714572675117,-569.26318745,0.00056986,120]
[325196434,1714572675126,-500.0,0.00056986,120]
[325196435,1714572675136,-511.17084469,0.00056986,120]
[325196436,1714572675151,-500.0,0.00056986,120]
[325196437,1714572675161,-500.0,0.00056986,120]
[325196438,1714572675173,-500.0,0.00056986,120]
[325196439,1714572675181,-500.0,0.00056986,120]
[325196440,1714572675191,-500.60700252,0.00056986,120]
[325196441,1714572675200,-500.0,0.00056986,120]
[325196442,1714572675211,-500.0,0.00056986,120]
[325196443,1714572675220,-874.24,0.00056986,120]
[325196444,1714572675229,-500.0,0.00056986,120]
[325196445,1714572675240,-500.0,0.00056986,2]
[325196446,1714572675251,-500.0,0.00056986,120]
[325196447,1714572675261,-500.0,0.00056986,120]
[325196448,1714572675270,-594.09579856,0.00056986,120]
[325196449,1714572675279,-4565.84,0.00056986,120]
[325196450,1714572675289,-500.0,0.00056986,120]
[325196451,1714572675298,-500.0,0.00056986,120]
[325196452,1714572675307,-500.0,0.00056986,120]
[325196453,1714572675316,-5396.39,0.00056986,120]
[325196454,1714572675326,-500.0,0.00056986,120]
[325196455,1714572675336,-500.0,0.00056986,120]
[325196456,1714572675346,-523.06,0.00056986,120]
[325196457,1714572675355,-500.0,0.00056986,120]
[325196458,1714572675365,-500.0,0.00056986,120]
[325196459,1714572675376,-500.0,0.00056986,120]
[325196460,1714572675386,-519.47,0.00056986,120]
[325196461,1714572675493,-300.0,0.00056986,2]
[325196462,1714572675503,-500.0,0.00056986,120]
[325196463,1714572675512,-500.0,0.00056986,120]
[325196464,1714572675522,-781.51,0.00056986,120]
[325196465,1714572675532,-500.0,0.00056986,120]
[325196466,1714572675541,-500.0,0.00056986,120]
[325196467,1714572675551,-294.99521183,0.00056986,120]
[325196468,1714572675560,-500.0,0.00056986,120]
[325196469,1714572675570,-670.21,0.00056986,120]
[325196470,1714572675579,-500.0,0.00056986,120]
[325196471,1714572675589,-502.4256326,0.00056986,120]
[325196472,1714572675598,-500.0,0.00056986,120]
[325196473,1714572675608,-699.57,0.00056986,120]
[325196474,1714572675618,-500.0,0.00056986,120]
[325196475,1714572675627,-553.84,0.00056986,120]
[325196476,1714572675636,-500.0,0.00056986,120]
[325196477,1714572675650,-500.0,0.00056986,120]
[325196478,1714572675659,-500.0,0.00056986,120]
[325196479,1714572675669,-500.0,0.00056986,120]
[325196480,1714572675679,-500.0,0.00056986,120]
[325196481,1714572675688,-500.0,0.00056986,120]
[325196482,1714572675698,-500.0,0.00056986,120]
[325196483,1714572675707,-223.60349342,0.00056986,120]
[325196484,1714572675716,-500.0,0.00056986,120]
[325196485,1714572675726,-670.01,0.00056986,120]
[325196486,1714572675735,-951.34,0.00056986,2]
[325196487,1714572675744,-735.78,0.00056986,120]
[325196488,1714572675753,-300.0,0.00056986,7]
[325196489,1714572675763,-500.0,0.00056986,120]
[325196490,1714572675773,-532.28255063,0.00056986,120]
[325196491,1714572675783,-500.0,0.00056986,120]
[325196492,1714572675792,-500.0,0.00056986,120]
[325196493,1714572675802,-500.0,0.00056986,120]
[325196494,1714572675811,-500.0,0.00056986,120]
[325196495,1714572675821,-848.19,0.00056986,120]
[325196496,1714572675830,-306.5633656,0.00056986,120]
[325196497,1714572675840,-500.0,0.00056986,120]
[325196498,1714572675850,-500.0,0.00056986,120]
[325196499,1714572675859,-500.0,0.00056986,120]
[325196500,1714572675869,-500.0,0.00056986,120]
[325196501,1714572675879,-500.0,0.00056986,120]
[325196502,1714572675893,-500.0,0.00056986,120]
[325196503,1714572675902,-500.0,0.00056986,120]
[325196504,1714572675911,-500.0,0.00056986,120]
[325196505,1714572675920,-1182.29,0.00056986,120]
[325196506,1714572675929,-500.0,0.00056986,120]
[325196507,1714572675939,-1042.65,0.00056986,120]
[325196508,1714572675949,-474.04326759,0.00056986,120]
[325196509,1714572675959,-500.0,0.00056986,120]
[325196510,1714572675969,-500.0,0.00056986,120]
[325196511,1714572675979,-592.11,0.00056986,120]
[325196512,1714572675989,-500.0,0.00056986,120]
[325196513,1714572675999,-500.0,0.00056986,120]
[325196514,1714572676009,-500.0,0.00056986,120]
[325196515,1714572676019,-500.0,0.00056986,120]
[325196516,1714572676029,-1000.0,0.00056986,120]
[325196517,1714572676038,-500.0,0.00056986,120]
[325196518,1714572676048,-500.0,0.00056986,120]
[325196519,1714572676058,-1839.53,0.00056986,120]
[325196520,1714572676068,-500.0,0.00056986,120]
[325196521,1714572676078,-336.85300015,0.00056986,120]
[325196522,1714572676088,-733.5,0.00056986,120]
[325196523,1714572676097,-500.0,0.00056986,120]
[325196524,1714572676107,-500.0,0.00056986,120]
[325196525,1714572676116,-573.09157035,0.00056986,120]
[325196526,1714572676126,-500.0,0.00056986,120]
[325196527,1714572676135,-500.0,0.00056986,120]
[325196528,1714572676147,-500.0,0.00056986,120]
[325196529,1714572676157,-500.0,0.00056986,120]
[325196530,1714572676172,-500.0,0.00056986,120]
[325196531,1714572676181,-500.0,0.00056986,120]
[325196532,1714572676191,-1073.97,0.00056986,120]
[325196533,1714572676201,-1287.33,0.00056986,120]
[325196534,1714572676211,-500.0,0.00056986,120]
[325196535,1714572676221,-563.35,0.00056986,120]
[325196536,1714572676230,-311.85042846,0.00056986,120]
[325196537,1714572676240,-500.0,0.00056986,120]
[325196538,1714572676250,-500.0,0.00056986,120]
[325196539,1714572676261,-500.0,0.00056986,120]
[325196540,1714572676271,-500.0,0.00056986,120]
[325196541,1714572676281,-912.09,0.00056986,120]
[325196542,1714572676291,-500.0,0.00056986,120]
[325196543,1714572676300,-500.0,0.00056986,3]
[325196544,1714572676310,-500.0,0.00056986,120]
[325196545,1714572676320,-500.0,0.00056986,120]
[325196546,1714572676329,-500.0,0.00056986,120]
[325196547,1714572676339,-500.0,0.00056986,120]
[325196548,1714572676349,-460.0336781,0.00056986,120]
[325196549,1714572676358,-500.0,0.00056986,120]
[325196550,1714572676367,-792.53,0.00056986,120]
[325196551,1714572676377,-511.91,0.00056986,120]
[325196552,1714572676386,-500.0,0.00056986,120]
[325196553,1714572676398,-1488.99,0.00056986,120]
[325196554,1714572676407,-775.37,0.00056986,120]
[325196555,1714572676416,-1779.15,0.00056986,120]
[325196556,1714572676425,-814.32,0.00056986,7]
[325196557,1714572676434,-500.0,0.00056986,120]
[325196558,1714572676443,-292.9119877,0.00056986,120]
[325196559,1714572676453,-500.0,0.00056986,120]
[325196560,1714572676462,-500.0,0.00056986,120]
[325196561,1714572676471,-500.0,0.00056986,120]
[325196562,1714572676481,-500.0,0.00056986,120]
[325196563,1714572676490,-749.91,0.00056986,120]
[325196564,1714572676500,-515.08,0.00056986,120]
[325196565,1714572676510,-1107.24,0.00056986,120]
[325196566,1714572676519,-500.0,0.00056986,120]
[325196567,1714572676528,-500.0,0.00056986,120]
[325196568,1714572676538,-500.0,0.00056986,120]
[325196569,1714572676548,-500.0,0.00056986,120]
[325196570,1714572676557,-989.44,0.00056986,120]
[325196571,1714572676567,-496.59077021,0.00056986,120]
[325196572,1714572676576,-672.45,0.00056986,120]
[325196573,1714572676586,-546.87,0.00056986,60]
[325196574,1714572676595,-394.26160973,0.00056986,120]
[325196575,1714572676604,-230.0,0.00056986,120]
[325196576,1714572676613,-500.0,0.00056986,120]
[325196577,1714572676623,-15331.91,0.00056986,120]
[325196578,1714572676632,-500.00049602,0.00056986,120]
[325196579,1714572676642,-500.0,0.00056986,120]
[325196580,1714572676652,-500.0,0.00056986,120]
[325196581,1714572676661,-319.84419381,0.00056986,120]
[325196582,1714572676671,-1460.27,0.00056986,120]
[325196583,1714572676680,-500.0,0.00056986,120]
[325196584,1714572676690,-500.0,0.00056986,120]
[325196585,1714572676700,-500.0,0.00056986,120]
[325196586,1714572676709,-572.79337958,0.00056986,120]
[325196587,1714572676719,-3286.58,0.00056986,2]
[325196588,1714572676728,-500.0,0.00056986,120]
[325196589,1714572676738,-500.0,0.00056986,120]
[325196590,1714572676747,-671.46,0.00056986,120]
[325196591,1714572676755,-500.0,0.00056986,120]
[325196592,1714572676765,-500.0,0.00056986,120]
[325196593,1714572676774,-500.0,0.00056986,120]
[325196594,1714572676784,-2544.3,0.00056986,120]
[325196595,1714572676793,-1492.06,0.00056986,120]
[325196596,1714572676802,-603.25997409,0.00056986,120]
[325196597,1714572676812,-500.0,0.00056986,120]
[325196598,1714572676821,-500.0,0.00056986,120]
[325196599,1714572676830,-11017.25,0.00056986,120]
[325196600,1714572676839,-500.0,0.00056986,120]
[325196601,1714572676849,-500.0,0.00056986,120]
[325196602,1714572676859,-527.57336194,0.00056986,120]
[325196603,1714572676869,-1610.35,0.00056986,120]
[325196604,1714572676878,-634.81599493,0.00056986,120]
[325196605,1714572676888,-500.0,0.00056986,120]
[325196606,1714572676900,-1825.83,0.00056986,120]
[325196607,1714572676909,-500.0,0.00056986,120]
[325196608,1714572676918,-823.85,0.00056986,120]
[325196609,1714572676927,-500.0,0.00056986,120]
[325196610,1714572676936,-500.0,0.00056986,120]
[325196611,1714572676946,-500.0,0.00056986,120]
[325196612,1714572676955,-1779.68,0.00056986,120]
[325196613,1714572676964,-279.71374118,0.00056986,120]
[325196614,1714572676974,-559.38,0.00056986,120]
[325196615,1714572676983,-500.0,0.00056986,120]
[325196616,1714572676993,-500.0,0.00056986,120]
[325196617,1714572677002,-500.0,0.00056986,120]
[325196618,1714572677012,-500.0,0.00056986,120]
[325196619,1714572677021,-500.0,0.00056986,120]
[325196620,1714572677030,-692.14,0.00056986,120]
[325196621,1714572677039,-1846.2,0.00056986,120]
[325196622,1714572677049,-1149.21,0.00056986,21]
[325196623,1714572677151,-500.0,0.00056986,120]
[325196624,1714572677161,-548.41,0.00056986,120]
[325196625,1714572677173,-500.0,0.00056986,120]
[325196626,1714572677182,-416.0092392,0.00056986,120]
[325196627,1714572677192,-511.21,0.00056986,120]
[325196628,1714572677202,-246.66857216,0.00056986,120]
[325196629,1714572677211,-2131.16,0.00056986,120]
[325196630,1714572677222,-500.0,0.00056986,120]
[325196631,1714572677231,-1147.1,0.00056986,120]
[325196632,1714572677241,-1609.49,0.00056986,120]
[325196633,1714572677253,-6055.3,0.00056986,120]
[325196634,1714572677262,-500.0,0.00056986,120]
[325196635,1714572677283,-500.0,0.00056986,120]
[325196636,1714572677295,-1668.77,0.00056986,120]
[325196637,1714572677305,-592.33,0.00056986,120]
[325196638,1714572677315,-500.0,0.00056986,120]
[325196639,1714572677326,-1156.16,0.00056986,120]
[325196640,1714572677336,-2002.71,0.00056986,120]
[325196641,1714572677347,-500.0,0.00056986,120]
[325196642,1714572677358,-408.77883262,0.00056986,120]
[325196643,1714572677368,-777.36,0.00056986,120]
[325196644,1714572677378,-500.0,0.00056986,120]
[325196645,1714572677388,-1214.19,0.00056986,120]
[325196646,1714572677401,-500.0,0.00056986,120]
[325196647,1714572677411,-603.09,0.00056986,120]
[325196648,1714572677422,-609.08,0.00056986,120]
[325196649,1714572677433,-500.0,0.00056986,120]
[325196650,1714572677443,-500.0,0.00056986,120]
[325196651,1714572677453,-243.76330396,0.00056986,120]
[325196652,1714572677464,-500.0,0.00056986,120]
[325196653,1714572677474,-1476.3,0.00056986,120]
[325196654,1714572677484,-500.0,0.00056986,120]
[325196655,1714572677494,-802.35,0.00056986,120]
[325196656,1714572677504,-5816.73,0.00056986,30]
[325196657,1714572677514,-554.12,0.00056986,120]
[325196658,1714572677524,-500.0,0.00056986,120]
[325196659,1714572677534,-500.0,0.00056986,120]
[325196660,1714572677544,-500.0,0.00056986,120]
[325196661,1714572677554,-500.0,0.00056986,120]
[325196662,1714572677564,-863.59,0.00056986,120]
[325196663,1714572677575,-791.02,0.00056986,120]
[325196664,1714572677585,-6727.11,0.00056986,120]
[325196665,1714572677596,-500.0,0.00056986,120]
[325196666,1714572677606,-500.0,0.00056986,120]
[325196667,1714572677616,-748.69,0.00056986,120]
[325196668,1714572677626,-500.0,0.00056986,120]
[325196669,1714572677638,-500.0,0.00056986,120]
[325196670,1714572677650,-3192.87,0.00056986,120]
[325196671,1714572677660,-1062.83,0.00056986,120]
[325196672,1714572677671,-23207.15,0.00056986,120]
[325196673,1714572677681,-772.53,0.00056986,120]
[325196674,1714572677691,-500.0,0.00056986,120]
[325196675,1714572677702,-8045.56,0.00056986,120]
[325196676,1714572677712,-1945.48,0.00056986,120]
[325196677,1714572677723,-500.0,0.00056986,120]
[325196678,1714572677733,-500.0,0.00056986,120]
[325196679,1714572677743,-1954.15,0.00056986,120]
[325196680,1714572677752,-1471.13,0.00056986,120]
[325196681,1714572677762,-500.0,0.00056986,120]
[325196682,1714572677772,-881.83,0.00056986,120]
[325196683,1714572677782,-775.47,0.00056986,120]
[325196684,1714572677792,-1101.12,0.00056986,120]
[325196685,1714572677801,-2965.72,0.00056986,120]
[325196686,1714572677811,-719.83,0.00056986,120]
[325196687,1714572677820,-1429.92,0.00056986,120]